Cogmind - Beta 9.4 @@@ ROGUE MODE // 2020.03.01 @ 13:51:27 Player: MJWkr Result: Destroyed by S-10 Pest with Light Assault Rifle Performance ------------- Evolutions (0) 0 Regions Visited (1) 200 Robots Destroyed (6) 30 Value Destroyed (55) 55 Prototype IDs (2) 40 Alien Tech Used (0) 0 Bonus (0) 0 TOTAL SCORE: 325 Bonus ------- None Cogmind --------- Core Integrity 0/250 Matter 293/300 Energy 98/100 System Corruption 0% Temperature Cool (0) Movement Core (50) Location -10/Materials Parts ------- > --- POWER (1) -------- (None) > --- PROPULSION (2) --- (None) > --- UTILITY (2) ------ Improved Targeting Computer > --- WEAPON (2) ------- (None) > --- INVENTORY (4) ---- Light Treads Light Treads Aluminum Leg Large Storage Unit Peak State ------------ > --- POWER ------------ Light Ion Engine > --- PROPULSION ------- Light Treads Light Treads > --- UTILITY ---------- Small Storage Unit Large Battery > --- WEAPON ----------- EM Pulse Gun Medium Laser > --- INVENTORY -------- Aluminum Leg Aluminum Leg Compact Wheel Compact Wheel Medium Laser [Rating: 7] Favorites ----------- Power Light Ion Engine Engine Light Ion Engine Propulsion Light Treads Treads Light Treads Wheel Compact Wheel Flight Unit Flight Unit Utility Large Battery Storage Large Battery Processor Improved Targeting Computer Weapon Medium Laser Energy Gun Medium Laser Energy Cannon Beam Cannon Build | -11 -10 ------- Run | Scr Mat Slots Evolved . | . . Power . | . . Propulsion . | . . Utility . | . . Weapon . | . . Parts Attached 15 | 6 9 Power 1 | 1 . Engine 1 | 1 . Core . | . . Reactor . | . . Propulsion 5 | 2 3 Treads 2 | 2 . Leg . | . . Wheel 2 | . 2 Hover . | . . Flight 1 | . 1 Utility 5 | 1 4 Device . | . . Storage 4 | 1 3 Processor 1 | . 1 Hackware . | . . Protection . | . . Artifact . | . . Weapon 4 | 2 2 Energy Gun 3 | 2 1 Energy Cannon 1 | . 1 Ballistic Gun . | . . Ballistic Cannon . | . . Launcher . | . . Special Weapon . | . . Impact Weapon . | . . Slashing Weapon . | . . Piercing Weapon . | . . Special Melee Weapon . | . . Unidentified Prototypes . | . . Parts Lost 9 | . 9 Power 1 | . 1 Propulsion 3 | . 3 Utility 1 | . 1 Weapon 4 | . 4 Highest Loss Streak 9 | . 9 Average Slot Usage (%) 84 | . 84 Engine 10 | . 10 Treads 7 | . 7 Wheel 16 | . 16 Flight 1 | . 1 Storage 22 | . 22 Processor 1 | . 1 Energy Gun 21 | . 21 Energy Cannon 1 | . 1 Naked Turns . | . . Heaviest Build 43 | 11 43 Greatest Support 40 | 40 40 Greatest Overweight (x) 2 | . 2 Average Overweight (x) . | . . Largest Inventory Capacity 12 | 6 12 Average Capacity 7 | 4 8 Most Carried 7 | 5 7 Average Carried 4 | 2 5 Final Capacity 6 | 6 4 Final Carried 5 | 5 4 Class Distribution -------------------- 100% | Mutant Dominant Class ---------------- Mutant | -10/Materials Resources | -11 -10 ----------- Run | Scr Mat Matter Collected 298 | 228 70 Remotely . | . . Salvage Created 102 | . 102 Parts 12 | . 12 Haulers Intercepted . | . . Recyclers Shooed . | . . Parts Field Recycled . | . . Retrieved Matter . | . . Parts Self-Destructed . | . . Prevented . | . . Kills | -11 -10 ------- Run | Scr Mat Combat Hostiles Destroyed 5 | . 5 Guns 3 | . 3 Cannons 2 | . 2 Classes Destroyed 2 | . 2 Builder 1 | . 1 Swarmer 5 | . 5 Best Kill Streak 3 | . 3 Combat Bots Only 2 | . 2 Max Kills in Single Turn 2 | . 2 Gunslinging . | . . Exploded . | . . Melee . | . . Uniques/NPCs Destroyed . | . . Combat | -11 -10 -------- Run | Scr Mat Damage Taken 682 | . 682 Core 254 | . 254 Absorbed by Shields . | . . Core Remaining (%) 100 | 100 . Volleys Fired 22 | . 22 Largest 2 | . 2 Hottest 110 | . 110 Shots Fired 41 | . 41 Gun 34 | . 34 Cannon 7 | . 7 Launcher . | . . Special . | . . Kinetic . | . . Thermal 24 | . 24 Explosive . | . . Electromagnetic 17 | . 17 Robot Hit Streak 4 | . 4 Robot Miss Streak 3 | . 3 Penetration Max . | . . Secondary Targets 1 | . 1 Max Gunslinging Chain 1 | . 1 Shots Hit Robots 20 | . 20 Core Hits 6 | . 6 Critical Hits . | . . Critical Kills . | . . Critical Parts Destroyed . | . . Melee Attacks . | . . Impact . | . . Slashing . | . . Piercing . | . . Sneak Attacks . | . . Combat Hostiles . | . . Follow-up Attacks . | . . Damage Inflicted 159 | . 159 Guns 108 | . 108 Cannons 51 | . 51 Explosions . | . . Melee . | . . Ramming . | . . Kinetic . | . . Thermal 100 | . 100 Explosive . | . . Electromagnetic 59 | . 59 Impact . | . . Slashing . | . . Piercing . | . . Highest Corruption . | . . Average Corruption . | . . Corruption Purged . | . . Overload Shots . | . . Overflow Damage . | . . Projectiles . | . . Explosions . | . . Melee . | . . Knockbacks . | . . Impact . | . . Kinetic . | . . Secondary . | . . Self-Inflicted Damage . | . . Shots . | . . Rammed . | . . Targets Rammed . | . . Kicked . | . . Crushed . | . . Highest Temperature 314 | . 314 Average Temperature 137 | . 137 Received Heat Transfer 54 | . 54 Siege Activations . | . . Robots Corrupted . | . . Combat Hostiles . | . . Parts Fried . | . . Impact Corruptions . | . . Robots Melted . | . . Combat Hostiles . | . . Parts Melted . | . . Heat Transferred 259 | . 259 Parts Sabotaged . | . . Parts Stolen . | . . Parts Stripped . | . . Power Chain Reactions . | . . Missiles Intercepted . | . . Alert | -11 -10 ------- Run | Scr Mat Peak Influence 97 | . 97 Average Influence 25 | . 36 Maximum Alert Level . | . . Low Security (%) 100 | 100 100 Level 1 . | . . Level 2 . | . . Level 3 . | . . Level 4 . | . . Level 5 . | . . High Security . | . . Max Security . | . . Squads Dispatched 2 | . 2 Investigation . | . . Extermination . | . . Reinforcement 2 | . 2 Assault . | . . Garrison . | . . Intercept . | . . Construction Impeded . | . . Haulers Reinforced . | . . Stealth | -11 -10 --------- Run | Scr Mat Distress Signals 2 | . 2 Communications Jammed . | . . Distress Signals . | . . Times Spotted 17 | . 17 Peak Tracking Total 8 | . 8 Tactical Retreats 3 | . 3 Traps | -11 -10 ------- Run | Scr Mat Traps Triggered . | . . Indirectly . | . . Trap Hack Attempts . | . . Triggered . | . . Disarmed . | . . Reprogrammed . | . . Reused . | . . Traps Extracted . | . . Installed . | . . Triggered . | . . Machines | -11 -10 ---------- Run | Scr Mat Machines Disabled . | . . Max in Single Turn . | . . Machines Sabotaged . | . . Garrisons Compromised . | . . Overloaded Fab Kills . | . . Fab Network Shutdowns . | . . Hacking | -11 -10 --------- Run | Scr Mat Machines Accessed 3 | . 3 Terminals 2 | . 2 Fabricators . | . . Repair Stations . | . . Recycling Units 1 | . 1 Scanalyzers . | . . Garrison Access . | . . Total Hacks 13 | . 13 Successful 4 | . 4 Failed 9 | . 9 Catastrophic 1 | . 1 Database Lockouts . | . . Manual 5 | . 5 Terminals 7 | . 7 Fabricators . | . . Repair Stations . | . . Recycling Units 6 | . 6 Scanalyzers . | . . Garrison Access . | . . Terminal Hacks 2 | . 2 Prototype ID Bank 1 | . 1 Registered Components 1 | . 1 Fabricator Hacks . | . . Repair Station Hacks . | . . Recycling Unit Hacks 2 | . 2 Report Inventory 1 | . 1 Retrieve Components 1 | . 1 Scanalyzer . | . . Garrison Access Hacks . | . . Unauthorized Hacks . | . . Terminals . | . . Fabricators . | . . Repair Stations . | . . Recycling Units . | . . Scanalyzers . | . . Garrison Access . | . . Data Cores Recovered . | . . Used . | . . Hacking Detections 2 | . 2 Full Trace Events . | . . Feedback Events . | . . Feedback Blocked . | . . Robot Schematics Acquired . | . . Robots Built . | . . Matter . | . . Time . | . . Total Robot Build Rating . | . . Part Schematics Acquired . | . . Parts Built . | . . Matter . | . . Time . | . . Total Part Build Rating . | . . Parts Repaired . | . . Time . | . . Parts Recycled . | . . Recycled Matter . | . . Retrieved Matter . | . . Retrieved Components 2 | . 2 Parts Scanalyzed . | . . Part Schematics Acquired . | . . Parts Damaged . | . . Bothacking | -11 -10 ------------ Run | Scr Mat Used RIF Installer . | . . Robots Hacked . | . . Non-combat . | . . Combat . | . . Robot Hacks Applied . | . . Relay Couplers Released . | . . Robots Rewired . | . . Allies Hacked . | . . Hacks Repelled . | . . Allies | -11 -10 -------- Run | Scr Mat Total Allies . | . . Largest Group . | . . Highest-Rated Group . | . . Highest-Rated Ally . | . . Total Orders . | . . Ally Attacks . | . . Total Damage . | . . Kills . | . . Allies Corrupted . | . . Allies Melted . | . . Intel | -11 -10 ------- Run | Scr Mat Robot Analysis Total . | . . Derelict Logs Recovered . | . . Drone Launches . | . . Drone Recoveries . | . . Exploration | -11 -10 ------------- Run | Scr Mat Turns Passed 327 | 95 232 Spaces Moved 199 | 53 146 Core 7 | 2 5 Treads 88 | 51 37 Legs . | . . Wheels 64 | . 64 Hover . | . . Flight 40 | . 40 Fastest Speed 45 | 50 45 Average Speed 115 | 155 101 Slowest Speed 160 | 160 160 Overloaded Moves . | . . Propulsion Burnouts . | . . Robots Hopped 2 | . 2 Cave-ins Triggered . | . . Exploration Rate (%) 20 | 5 36 Regions Visited 1 Branch Regions . Pre-discovered Areas . | . . Known Exits Taken . | . . Unknown Exits Taken 1 | 1 . Scrap Searched . | . . Spaces Dug . | . . Terrain Destroyed . | . . Melee . | . . Projectile . | . . AOE . | . . Actions | -11 -10 --------- Run | Scr Mat Total 248 | 63 185 Wait 7 | . 7 Move 194 | 52 142 Hop 2 | . 2 Pick Up 6 | 5 1 Fast Attach 9 | 6 3 Attach 2 | . 2 Detach . | . . Swap 4 | . 4 Drop 2 | . 2 Fire 22 | . 22 Melee . | . . Ram . | . . Kick . | . . Crush . | . . Escape Stasis . | . . Rewire . | . . Trap . | . . Miscellaneous . | . . Route ------- -11/Scrapyard -10/Materials History --------- Turn | Location | Event 6 | -11/Scrapyard | Discovered new exit (range 15) 96 | -11/Scrapyard | Entered Materials 292 | -10/Materials | Core integrity fell below 50% 324 | -10/Materials | Core integrity fell below 20% 327 | -10/Materials | Build established: Mutant 328 | -10/Materials | Destroyed by S-10 Pest with Light Assault Rifle Last Messages --------------- 00281_ S-10 Pest destroyed. 00284_ Lrg. Battery destroyed. 00287_ Beam Cannon destroyed. 00292_ R-06 Scavenger collects Lgt. Assault Rifle. 00293_ Acquired 19 matter. 00295_ Acquired Flight Unit. 00297_ Dropped Hcp. Storage Unit. 00303_ Acquired 14 matter. 00306_ Acquired Imp. Targeting Computer. 00315_ W-16 Scout sends out distress signal. 00315_ Connecting with Terminal... >>Prototypes Downloading prototype IDs... Imp. Medium Laser Imp. EM Shotgun 00317_ Flight Unit destroyed. 00318_ ALERT: Hostiles spotted, dispatching reinforcements to Terminal M007. 00322_ K-01 Serf destroyed. 00326_ Com. Wheel destroyed. Map ----- +----------------------------------------------------+ | ?? ?????? ???????????????????????????????? | | ??? ???? ??????????????????????????????? | | ??? ???? ??????????????????????????????? | | ####/#####?# ? ?????????????????????????????? | | #?# """" ?????????????????????????????? | | #?# """" #######?????????????????????? | | %% #?# """" !# #?????????????????????? | | #?# #?????????????????????? | | ! #?# T #?????????????????????? | | #?# = #?????????????????????? | | != #?# ###+###%= #?????????????????????? | | #?# ## ## ##?????????????????????? | | ######"###?# ## ""## s #??????????????????????? | | ?????# #???# ## T"##s #??????????????????????? | | ?????# #???# ## ""##s #??????????????????????? | | ###### ##### + ## #??????????????????????? | | ## + #??????????????????????? | | ######## ######## #??????????????????????? | | #??????# #??????#s #??????????????????????? | | #??????#!!! !!#??????# #??????????????????????? | | +##?????#!!!!!!#??????# #??????????????????????? | | #?????########??????# #??????????????????????? | | " #???????????????????# #??????????????????????? | | " #???????????????????# #??????????????????????? | | " #???????????????????# #??????????????????????? | | #???????????????????# @#??????????????????????? | | #???????????????????# #??????????????????????? | | #???????????????????# #??????????????????????? | | #???????????????????#r #??????????????????????? | | #???????????????????# #??????????????????????? | | #########+## ????????# #??????????????????????? | | ??????? ??????????????????????? | | ??????? ??????????????????????? | | ?????? ??????????????????????? | | #########/##"????????+######?????????????????????? | | #????????????????????????????????????????????????? | | #????????????????????????????????????????????????? | | +?????????????????????????????????????????????? | | ####?????????????????????????????????????????????? | | #????????????????????????????????????????????????? | | #????????????????????????????????????????????????? | | #????????????????????????????????????????????????? | | #????????????????????????????????????????????????? | | ##???????????????????????????????????????????????? | | #???????????????????????????????????????????????? | | #???????????????????????????????????????????????? | | +???????????????????????????????????????????????? | | #???????????????????????????????????????????????? | | #???????????????????????????????????????????????? | | ##???????????????????????????????????????????????? | +----------------------------------------------------+ Best States ------------- Heat Dissipation 25 Energy Generation 10 Energy Capacity 425 Matter Stores 288 Matter Capacity 300 Sight Range 16 Terrain Scan Density 10 Evasion (%) 61 Targeting Accuracy 6 Recoil Reduction 2 Item Schematics ----------------- None Robot Schematics ------------------ None Fabricated ------------ Nothing Alien Tech Used ----------------- None Achievements -------------- None Challenges ------------ None Game ------ Seed SpikedTargetingBroadsword Manual? 0 Play Time 00:09:22 Cumulative 11.3 hours Start 2020.03.01 @ 13:41:58 End 2020.03.01 @ 13:51:27 Sessions 1 Manual Loads 0 Difficulty Rogue Special Mode None Game No. 28 Rogue 28 Adventurer 0 Explorer 0 Win Type - Total 0 Types 0/0/0/0/0/0/0 Lore% 7 Gallery% 27 Achievement% 16 Wizard Run 0 Options --------- ASCII 0 Keyboard 1 Movement Numpad Keybinds 0 Fullscreen 0 Font 16/SmallcapsGlow Map View 76x50 Tactical HUD 1 Map Filters NONE Filters NONE Steam 1 RUN: 0a44be44-2f30-46ac-932e-9e9c1642ca9b